Cogmind - Beta 11.1 @@@ ROGUE MODE // 2022.04.29 @ 14:55:08 Player: Mousetrap_ Result: Destroyed by Y-45 Defender with Heavy Assault Rifle Performance ------------- Evolutions (1) 500 Regions Visited (4) 800 Robots Destroyed (51) 255 Value Destroyed (1358) 1358 Prototype IDs (5) 100 Alien Tech Used (0) 0 Bonus (-68) -68 TOTAL SCORE: 2945 Bonus ------- High Alert Combat Kills 50 Follower Combat Kills 46 Friendly Fire -164 Cogmind --------- Core Integrity 0/400 Matter 400/500 Energy 26/100 System Corruption 0% Temperature Cool (38) Movement Walking (400) Ox4 Location -9/Storage Parts ------- > --- POWER (1) -------- (None) > --- PROPULSION (2) --- Aluminum Leg > --- UTILITY (4) ------ Large Storage Unit High-capacity Matter Pod Visual Processing Unit Sensor Drone Bay (18/20) > --- WEAPON (2) ------- Light Assault Rifle Improved Light Cannon > --- INVENTORY (15) --- Ion Engine Aluminum Leg Aluminum Leg High-capacity Battery (216) Terrain Scanner Terrain Scanner Terrain Scan Processor Trap Extractor (0/4) Particle Gun Datajack EMP Trap Peak State ------------ > --- POWER ------------ Light Nuclear Core > --- PROPULSION ------- Aluminum Leg Aluminum Leg > --- UTILITY ---------- Large Storage Unit High-capacity Battery Visual Processing Unit Sensor Drone Bay > --- WEAPON ----------- Heavy EM Pulse Gun Particle Gun > --- INVENTORY -------- Ion Engine Ion Engine Improved Ion Engine Light Treads Aluminum Leg Aluminum Leg Heavy EM Pulse Gun Heavy EM Pulse Gun Heavy EM Pulse Gun Improved Light Cannon EMP Trap EMP Trap EMP Trap EMP Trap EMP Trap [Rating: 23] Favorites ----------- Power Light Nuclear Core Engine Ion Engine Power Core Light Nuclear Core Propulsion Aluminum Leg Treads Light Treads Leg Aluminum Leg Wheel Wheel Utility Visual Processing Unit Device Sensor Drone Bay Storage Small Storage Unit Processor Visual Processing Unit Weapon Beam Rifle Energy Gun Beam Rifle Ballistic Gun Assault Rifle Ballistic Cannon Improved Light Cannon Launcher Rocket Launcher Build | -11 -10 -10 -9 -9 ------- Run | Scr Mat Min Mat Sto Slots Evolved 2 | . . . 2 . Power . | . . . . . Propulsion . | . . . . . Utility 2 | . . . 2 . Weapon . | . . . . . Parts Attached 70 | 7 4 17 11 31 Power 6 | 1 . 2 1 2 Engine 3 | 1 . 1 . 1 Core 3 | . . 1 1 1 Reactor . | . . . . . Propulsion 18 | 2 2 4 4 6 Treads 2 | 2 . . . . Leg 12 | . 2 2 4 4 Wheel 4 | . . 2 . 2 Hover . | . . . . . Flight . | . . . . . Utility 16 | 2 . 3 3 8 Device 5 | 1 . 1 1 2 Storage 10 | 1 . 1 2 6 Processor 1 | . . 1 . . Hackware . | . . . . . Protection . | . . . . . Artifact . | . . . . . Weapon 30 | 2 2 8 3 15 Energy Gun 18 | . 2 3 3 10 Energy Cannon . | . . . . . Ballistic Gun 8 | 2 . 5 . 1 Ballistic Cannon 3 | . . . . 3 Launcher 1 | . . . . 1 Special Weapon . | . . . . . Impact Weapon . | . . . . . Slashing Weapon . | . . . . . Piercing Weapon . | . . . . . Special Melee Weapon . | . . . . . Unidentified Prototypes 1 | . . 1 . . Parts Lost 15 | . 1 2 . 12 Power 3 | . . 1 . 2 Propulsion 4 | . . 1 . 3 Utility 1 | . 1 . . . Weapon 7 | . . . . 7 Highest Loss Streak 5 | . 1 1 . 5 To Critical Strikes . | . . . . . Average Slot Usage (%) 97 | . 95 96 98 97 Engine 4 | . 14 5 . 4 Core 6 | . . 6 9 5 Treads 2 | . 24 . . . Leg 17 | . 2 17 22 18 Wheel 3 | . . 9 . 2 Device 7 | . 10 . 11 11 Storage 18 | . 14 13 22 21 Processor 10 | . . 14 11 11 Energy Gun 16 | . 15 18 13 17 Ballistic Gun 6 | . 12 9 8 . Naked Turns . | . . . . . Heaviest Build 51 | 14 17 16 49 51 Greatest Support 40 | 40 40 20 20 20 Greatest Overweight (x) 5 | . 1 . 2 5 Average Overweight (x) . | . . . 1 2 Largest Inventory Capacity 15 | 8 8 8 15 15 Average Capacity 11 | 7 8 7 13 15 Most Carried 15 | 8 8 8 15 15 Average Carried 9 | 5 7 7 11 13 Final Capacity 15 | 8 8 8 15 15 Final Carried 15 | 7 8 8 15 11 Class Distribution -------------------- 100% | Mutant Dominant Class ---------------- Mutant | -10/Materials Mutant | -10/Mines Mutant | -9/Materials Mutant | -9/Storage Resources | -11 -10 -10 -9 -9 ----------- Run | Scr Mat Min Mat Sto Matter Collected 1285 | 346 15 301 194 429 Remotely . | . . . . . Salvage Created 1859 | 180 118 179 558 824 Parts 119 | 10 9 6 33 61 Haulers Intercepted 1 | . . . . 1 Recyclers Shooed 2 | . . 1 1 . Parts Field Recycled . | . . . . . Retrieved Matter . | . . . . . Parts Self-Destructed . | . . . . . Prevented . | . . . . . Kills | -11 -10 -10 -9 -9 ------- Run | Scr Mat Min Mat Sto Combat Hostiles Destroyed 37 | . 2 7 10 18 Guns 25 | . 1 7 10 7 Cannons 4 | . . . . 4 AOE 7 | . . . . 7 Classes Destroyed 12 | 3 2 3 2 2 Worker 7 | 2 1 1 . 3 Tunneler 3 | 3 . . . . Hauler 1 | . . . . 1 Recycler 2 | 1 . . 1 . Operator 2 | . 1 . . 1 Drone 1 | . . . . 1 Watcher 2 | . . . 1 1 Swarmer 4 | . . 1 . 3 Grunt 21 | . 2 2 6 11 Sentry 8 | . . . 4 4 Demolisher 1 | . . 1 . . Assembled 3 | . . 3 . . Best Kill Streak 5 | 4 4 3 3 5 Combat Bots Only 5 | . 2 3 3 5 Max Kills in Single Turn 5 | 1 1 1 1 5 Gunslinging . | . . . . . Exploded 3 | . . . . 3 Melee . | . . . . . Uniques/NPCs Destroyed . | . . . . . Combat | -11 -10 -10 -9 -9 -------- Run | Scr Mat Min Mat Sto Damage Taken 2830 | . 224 425 584 1597 Core 503 | . 10 78 110 305 Absorbed by Shields . | . . . . . Regen/Repaired (Parts) 42 | . . . 42 . Core Remaining (%) 82 | 100 . 64 . . Volleys Fired 147 | 19 9 30 36 53 Largest 2 | 2 2 2 2 2 Hottest 121 | 40 112 121 110 104 Shots Fired 274 | 38 18 58 70 90 Gun 260 | 38 18 58 70 76 Cannon 11 | . . . . 11 Launcher 3 | . . . . 3 Special . | . . . . . Kinetic 107 | 38 . 28 28 13 Thermal 83 | . 18 30 27 8 Explosive 3 | . . . . 3 Electromagnetic 81 | . . . 15 66 Robot Hit Streak 8 | 7 8 8 8 8 Robot Miss Streak 7 | 2 2 2 4 7 Penetration Max . | . . . . . Secondary Targets 4 | . . 3 1 . Max Gunslinging Chain 1 | . . 1 1 . Shots Hit Robots 177 | 25 13 41 44 54 Core Hits 86 | 10 4 18 20 34 Critical Kills . | . . . . . Critical Parts Destroyed . | . . . . . Critical Strikes 9 | . 1 4 3 1 Burn 7 | . 1 4 2 . Corrupt 2 | . . . 1 1 Melee Attacks . | . . . . . Impact . | . . . . . Slashing . | . . . . . Piercing . | . . . . . Sneak Attacks . | . . . . . Combat Hostiles . | . . . . . Follow-up Attacks . | . . . . . Damage Inflicted 3142 | 262 218 458 661 1543 Guns 2240 | 262 218 458 619 683 Cannons 191 | . . . . 191 Explosions 711 | . . . 42 669 Melee . | . . . . . Ramming . | . . . . . Kinetic 862 | 262 . 162 235 203 Thermal 1071 | . 218 296 235 322 Explosive 379 | . . . . 379 Electromagnetic 830 | . . . 191 639 Impact . | . . . . . Slashing . | . . . . . Piercing . | . . . . . Highest Corruption 2 | . 2 2 . . Average Corruption 2 | . 2 2 . . Corruption Purged . | . . . . . Corruption Blocked . | . . . . . Effects 12 | . . 12 . . Message Errors 2 | . . 2 . . Matter Fused 5 | . . 5 . . Heat Flow Errors 1 | . . 1 . . Energy Discharges 1 | . . 1 . . Data Loss (minor) 1 | . . 1 . . Weapon Failures 2 | . . 2 . . Overload Shots . | . . . . . Overflow Damage 4 | . . . . 4 Projectiles 3 | . . . . 3 Explosions 1 | . . . . 1 Melee . | . . . . . Knockbacks . | . . . . . Impact . | . . . . . Kinetic . | . . . . . Secondary . | . . . . . Self-Inflicted Damage 50 | . . . . 50 Shots 2 | . . . . 2 Rammed . | . . . . . Targets Rammed . | . . . . . Kicked . | . . . . . Crushed . | . . . . . Highest Temperature 509 | . 509 309 162 230 Average Temperature 93 | . 240 114 52 67 Received Heat Transfer 1035 | . 126 54 288 567 Effects 6 | . 6 . . . Shutdowns 1 | . 1 . . . Matter Decay 1 | . 1 . . . Damage (major) 4 | . 4 . . . Siege Activations . | . . . . . Robots Corrupted . | . . . . . Combat Hostiles . | . . . . . Parts Fried 3 | . . . . 3 Impact Corruptions . | . . . . . Robots Melted 1 | . 1 . . . Combat Hostiles 1 | . 1 . . . Parts Melted 4 | . . 2 2 . Heat Transferred 2768 | . 629 1036 679 424 Parts Sabotaged . | . . . . . Parts Stolen . | . . . . . Parts Stripped . | . . . . . Power Chain Reactions 5 | . . . 1 4 Missiles Intercepted . | . . . . . Alert | -11 -10 -10 -9 -9 ------- Run | Scr Mat Min Mat Sto Peak Influence 556 | 30 69 117 189 556 Initial 79 | . 19 26 45 79 Average 129 | 10 27 69 106 283 Maximum Alert Level 2 | . . . . 2 Low Security (%) 79 | 100 100 100 100 25 Level 1 15 | . . . . 57 Level 2 4 | . . . . 16 Level 3 . | . . . . . Level 4 . | . . . . . Level 5 . | . . . . . High Security . | . . . . . Max Security . | . . . . . Squads Dispatched 4 | . . . 2 2 Investigation 3 | . . . 2 1 Extermination . | . . . . . Reinforcement 1 | . . . . 1 Assault . | . . . . . Garrison . | . . . . . Intercept . | . . . . . Searches Triggered . | . . . . . Construction Impeded . | . . . . . Haulers Reinforced . | . . . . . Active Scanning Responses . | . . . . . Cargo Convoy Interrupts . | . . . . . Stealth | -11 -10 -10 -9 -9 --------- Run | Scr Mat Min Mat Sto Distress Signals 2 | . 1 . 1 . Communications Jammed . | . . . . . Distress Signals . | . . . . . Times Spotted 57 | . 4 11 16 26 Peak Tracking Total 5 | . 2 3 4 5 Tactical Retreats 2 | . . 1 . 1 Traps | -11 -10 -10 -9 -9 ------- Run | Scr Mat Min Mat Sto Traps Triggered 1 | . 1 . . . Indirectly . | . . . . . Trap Hack Attempts . | . . . . . Triggered . | . . . . . Disarmed . | . . . . . Reprogrammed . | . . . . . Reused . | . . . . . Traps Extracted . | . . . . . Installed . | . . . . . Triggered . | . . . . . Most Traps Carried 5 | . . 5 5 5 Machines | -11 -10 -10 -9 -9 ---------- Run | Scr Mat Min Mat Sto Machines Disabled 3 | . 1 . 1 1 Max in Single Turn 1 | . 1 . 1 1 Machines Sabotaged . | . . . . . Garrisons Compromised . | . . . . . Overloaded Fab Kills . | . . . . . Hacking | -11 -10 -10 -9 -9 --------- Run | Scr Mat Min Mat Sto Machines Accessed 8 | . 1 2 3 2 Terminals 4 | . 1 1 1 1 Fabricators . | . . . . . Repair Stations 1 | . . . 1 . Recycling Units 2 | . . . 1 1 Scanalyzers . | . . . . . Garrison Access . | . . . . . Total Hacks 25 | . 3 4 11 7 Successful 18 | . 3 2 10 3 Failed 7 | . . 2 1 4 Catastrophic 1 | . . . . 1 Database Lockouts . | . . . . . Manual . | . . . . . Terminals 14 | . 3 3 4 4 Fabricators . | . . . . . Repair Stations 3 | . . . 3 . Recycling Units 7 | . . . 4 3 Scanalyzers . | . . . . . Garrison Access . | . . . . . Terminal Hacks 9 | . 3 2 3 1 Record 3 | . 3 . . . Prototype ID Bank 2 | . . . 1 1 Open Door 1 | . . 1 . . Unreport Threat 1 | . . . 1 . Hauler Manifests 1 | . . . 1 . Zone Layout 1 | . . 1 . . Fabricator Hacks . | . . . . . Repair Station Hacks 3 | . . . 3 . Scan Component 2 | . . . 2 . Repair 1 | . . . 1 . Recycling Unit Hacks 6 | . . . 4 2 Recycle Component 3 | . . . 3 . Retrieve Matter 1 | . . . . 1 Retrieve Components 2 | . . . 1 1 Scanalyzer . | . . . . . Garrison Access Hacks . | . . . . . Unauthorized Hacks . | . . . . . Terminals . | . . . . . Fabricators . | . . . . . Repair Stations . | . . . . . Recycling Units . | . . . . . Scanalyzers . | . . . . . Garrison Access . | . . . . . Data Cores Recovered . | . . . . . Used . | . . . . . Hacking Detections 4 | . 1 . 2 1 Full Trace Events 3 | . . . 2 1 Feedback Events . | . . . . . Feedback Blocked . | . . . . . Robot Schematics Acquired . | . . . . . Robots Built . | . . . . . Authchips . | . . . . . Time . | . . . . . Total Robot Build Rating . | . . . . . Part Schematics Acquired . | . . . . . Parts Built . | . . . . . Authchips . | . . . . . Time . | . . . . . Total Part Build Rating . | . . . . . Parts Repaired 1 | . . . 1 . Time 38 | . . . 38 . Parts Recycled 3 | . . . 3 . Recycled Matter . | . . . . . Retrieved Matter . | . . . . . Retrieved Components 17 | . . . 9 8 Parts Scanalyzed . | . . . . . Part Schematics Acquired . | . . . . . Parts Damaged . | . . . . . Bothacking | -11 -10 -10 -9 -9 ------------ Run | Scr Mat Min Mat Sto Used RIF Installer . | . . . . . Robots Hacked . | . . . . . Non-combat . | . . . . . Combat . | . . . . . Robot Hacks Applied . | . . . . . Relay Couplers Released . | . . . . . Fabnet Peak Effective % . | . . . . . Robots Rewired . | . . . . . Allies Hacked . | . . . . . Hacks Repelled . | . . . . . Allies | -11 -10 -10 -9 -9 -------- Run | Scr Mat Min Mat Sto Total Allies 2 | . . 2 . . Largest Group 2 | . . 2 1 . Highest-Rated Group 45 | . . 45 31 . Highest-Rated Ally 31 | . . 31 31 . Total Orders . | . . . . . Ally Attacks 20 | . . 11 9 . Total Damage 252 | . . 104 148 . Kills 4 | . . 3 1 . Allies Corrupted . | . . . . . Allies Melted 1 | . . . 1 . Intel | -11 -10 -10 -9 -9 ------- Run | Scr Mat Min Mat Sto Robot Analysis Total . | . . . . . Derelict Logs Recovered 1 | . . 1 . . Drone Launches 18 | . . . 4 14 Drone Recoveries 16 | . . . 4 12 Exploration | -11 -10 -10 -9 -9 ------------- Run | Scr Mat Min Mat Sto Turns Passed 2392 | 201 209 711 612 659 Spaces Moved 1022 | 85 105 495 170 167 Core 5 | 5 . . . . Treads 170 | 80 90 . . . Legs 650 | . 15 311 170 154 Wheels 197 | . . 184 . 13 Hover . | . . . . . Flight . | . . . . . Fastest Speed 50 | 50 120 80 190 110 Average Speed 162 | 153 154 105 247 253 Slowest Speed 470 | 160 190 120 260 470 Overloaded Moves . | . . . . . Propulsion Burnouts . | . . . . . Robots Hopped . | . . . . . Cave-ins Triggered . | . . . . . Exploration Rate (%) 34 | 6 19 93 20 33 Regions Visited 4 Branch Regions 2 Pre-discovered Areas . | . . . . . Known Exits Taken 1 | . . . 1 . Unknown Exits Taken 3 | 1 1 1 . . Scrap Searched . | . . . . . Spaces Dug . | . . . . . Terrain Destroyed 60 | . . . 13 47 Melee . | . . . . . Projectile . | . . . . . AOE 60 | . . . 13 47 Terrain Rammed . | . . . . . Walls Destroyed . | . . . . . Machines Disabled . | . . . . . Actions | -11 -10 -10 -9 -9 --------- Run | Scr Mat Min Mat Sto Total 1497 | 119 136 636 294 312 Wait 136 | . . 51 50 35 Move 1018 | 84 104 494 169 167 Hop . | . . . . . Pick Up 69 | 9 9 19 19 13 Fast Attach 19 | 5 2 7 1 4 Attach 19 | 2 . 3 3 11 Detach 4 | . . 2 1 1 Swap 32 | . 2 7 7 16 Drop 53 | . 10 23 8 12 Fire 147 | 19 9 30 36 53 Melee . | . . . . . Ram . | . . . . . Kick . | . . . . . Crush . | . . . . . Escape Stasis . | . . . . . Rewire . | . . . . . Trap . | . . . . . Miscellaneous . | . . . . . Route ------- -11/Scrapyard -10/Materials -10/Mines -9/Materials -9/Storage History --------- Turn | Location | Event 45 | -11/Scrapyard | Discovered new exit (range 15) 202 | -11/Scrapyard | Entered Materials 340 | -10/Materials | Build established: Mutant 351 | -10/Materials | Discovered new exit (range 15) 411 | -10/Materials | Entered Mines 412 | -10/Mines | Assembled infested the area 800 | -10/Mines | Found a hidden stash of uninstalled traps 915 | -10/Mines | Found the Drone Emporium 923 | -10/Mines | Found Prototype Device 928 | -10/Mines | Identified Sensor Drone Bay 998 | -10/Mines | Discovered new exit (range 14) 1122 | -10/Mines | Entered Materials 1122 | -9/Materials | Accompanied by 1 ally 1122 | -9/Materials | Evolved 2 slots: Utility x2 1123 | -9/Materials | Identified exit to Storage 1127 | -9/Materials | Led the pair of lost Derelicts to an unsafe place 1429 | -9/Materials | Repaired Lgt. Nuclear Core 1734 | -9/Materials | Entered Storage 1962 | -9/Storage | Core integrity fell below 50% 1967 | -9/Storage | Lost 3 parts (1n2w) 2106 | -9/Storage | Lost 4 parts (1p1n2w) 2375 | -9/Storage | Core integrity fell below 20% 2393 | -9/Storage | Destroyed by Y-45 Defender with Heavy Assault Rifle Last Messages --------------- 02371_ Lgt. Nuclear Core destroyed. 02372_ K-01 Serf collects debris. 02374_ Hvy. EM Pulse Gun destroyed. 02374_ Critical hit (Burn: +37). 02376_ K-01 Serf collects debris. 02380_ Hvy. EM Pulse Gun destroyed. 02381_ The unstable cave ceiling collapses. 02381_ K-01 Serf collects debris. 02383_ Trap Extractor dropped EMP Trap. 02384_ Y-45 Defender suffers critical hit (Burn). 02385_ Trap Extractor dropped EMP Trap. 02385_ K-01 Serf collects debris. 02386_ Trap Extractor dropped EMP Trap. 02387_ Aluminum Leg destroyed. 02388_ K-01 Serf collects debris. 02388_ Y-45 Defender misfires. 02388_ K-01 Serf destroyed. 02391_ Critical hit (Burn: +37). 02391_ K-01 Serf collects debris. 02393_ Critical hit (Burn: +37). Map ----- +----------------------------------------------------+ | | | ?????????????????????????????????????????????????? | | ?????????????????????????????????????????????????? | | ?????????????????????????????????????????????????? | | ?????????????????????????????????????????????????? | | ?????????????????????????????????????????????????? | | ?????????????????# ###???????????????????????????? | | ??????????????? ???????????????????????????? | | ??????????????# ??????????????????????????? | | ?????????????## T ???????##?????????????????? | | ?????????????# ??##### ##????????????????? | | ?????????????? [[= #?? #????????????????? | | ??????????????+ [= #? """ #????????????????? | | ??????????????# [= # ? """ #????????????????? | | ??????????????# # # """ #????????????????? | | ??????????????# # #????????????????? | | ??????????????# ! ?????????????????? | | ????????????????# #]][;;;"##### #????????????? | | ?????????????????# ] ]%[k== #????????????? | | ?????????????????# #]#=Y;" #######????????????? | | ?????????????????+ #!%[ # #??????????????????? | | ?????????????????# [ YY## #??????????????????? | | ?????????????????+ ## #??????????????????? | | ?????????????????# ## ###########????????? | | ?????????????????# # &&## /???? | | ?????????????????# ?# @&## ##### ##????????? | | ?????????????????# ??# %## #???? #?????????? | | ?????????????????#???########+##### ??????????? | | ???????????????????????????#[ !# ??????????? | | ???????????????????????????# # ???????????? | | ???????????????????????????# + ????????????? | | ???????????????????????????# # #????????????? | | ???????????????????????????# | # #????????????? | | ???????????????????????????# =! + #????????????? | | ???????????????????????#########/## #????????????? | | ???????????????????????# # ############## | | ???????????????????????# + | | ???????????????????????# # #??? | | ???????????????????????######### #??? | | ???????????????????????????????# #??? | | ??????????????????????????????## %* #??? | | ??????????????????????????????+ ! +??? | | ??????????????????????????????# #??? | | ??????????????????????????????# #??? | | ?????????????????????????????## % #### | | ?????????????????????????????# % ^ | | ?????????????????????????????+ | | ?????????????????????????????# ^ | | ?????????????????????????????## ######### ^ | | ??????????????????????????????# #???????? | +----------------------------------------------------+ Best States ------------- Heat Dissipation 28 Energy Generation 14 Energy Capacity 515 Matter Stores 491 Matter Capacity 500 Sight Range 18 Terrain Scan Range 16 Terrain Scan Density 10 Evasion (%) 55 Recoil Reduction 2 Trap Extractor Capacity 4 Item Schematics ----------------- None Robot Schematics ------------------ None Fabricated ------------ Nothing Alien Tech Used ----------------- None Achievements -------------- I Survived The Infestation Release The Drones! Challenges ------------ None Game ------ Seed PortableVisualPrototype Manual? 0 Play Time 01:06:18 Cumulative 12.5 hours Start 2022.04.29 @ 01:10:40 End 2022.04.29 @ 14:55:08 Sessions 3 Manual Loads 0 Difficulty Rogue Special Mode None Game No. 11 Rogue 11 Adventurer 0 Explorer 0 Win Type - Total 0 Types 0/0/0/0/0/0/0/0/0 Lore% 2 Gallery% 14 Achievement% 12 Wizard Run 0 Options --------- ASCII 0 Keyboard 0 Movement Mouse Keybinds 0 Fullscreen 2 Font 18/Smallcaps Map View 76x50 Tactical HUD 1 Map Filters NONE Filters NONE Steam 1 RUN: d799e746-6b1d-4aad-bf0c-d92e173c68a9